{"text_format":"1","workbook":"xlsx","n_sheets":2,"sheets":["Продуктовая корзина","Итоговый список"],"not_rendered":{"charts":0,"images":0,"macros":1,"external_links":0,"defined_names":0,"comments":0,"pivot_tables":0},"unopened":[],"bounds":{"document_bytes":16777216,"sheet_cells":100000,"rows_first":2000,"rows_last":500,"rows_between":2000,"halvings":0,"cell_chars":16384,"cell_head_chars":4096},"cells_cut":0,"cells_raw":0,"read":"whole","date_system":"1900"}

{"sheet":"Продуктовая корзина","index":0,"n_rows":50,"n_cols":8,"rows_kept":50,"cut":false,"hidden":false,"merged":[[35,0,36,0],[35,4,36,4],[29,0,30,0],[1,0,2,0],[10,0,11,0],[1,4,2,4],[21,4,22,4],[26,4,27,4]]}
[null,"Цена","Кол-во","Итого",null,"Цена","Кол-во","Итого"]
["Мясо и рыба",null,null,{"$f":"B2*C2","v":0},"Бакалея",null,null,{"$f":"F2*G2","v":0}]
[null,null,null,0,null,null,null,0]
["Цыпленок охл.",2,null,0,"Пельмени",2,null,0]
["Грудка куриная",3,null,0,"Макароны",3,null,0]
["Голень куриная копч.",4,null,0,"Гречка",4,null,0]
["Фарш",5,null,0,"Панир. сухари",5,null,0]
["Свинина",6,null,0,"Сахар",6,null,0]
["Говядина",7,null,0,"Рис",7,null,0]
[null,null,null,0,"Соль",8,null,0]
["Фрукты и овощи",null,null,0,"Фасоль",9,null,0]
[null,null,null,0,"Горох",10,null,0]
["Лимон",9,null,0,"Овсянка",11,null,0]
["Яблоки",10,null,0,"Пшено",12,null,0]
["Бананы",11,null,0,"Крупа кукурузная",13,null,0]
["Апельсины",12,null,0,"Мука",14,null,0]
["Мандарины",13,null,0,"Шоколад",15,null,0]
["Груши",14,null,0,"Сода",16,null,0]
["Кабачки",15,null,0,"Хлеб",17,null,0]
["Капуста",16,null,0,"Чай",18,null,0]
["Лук",17,null,0,null,null,null,0]
["Морковь",18,null,0,"Соусы",null,null,0]
["Зелень",19,null,0,null,null,null,0]
["Помидоры",20,null,0,"Майонез",20,null,0]
["Огурцы",21,null,0,"Кетчуп",21,null,0]
["Чеснок",22,null,0,null,null,null,0]
["Картофель",23,null,0,"Консервы",null,null,0]
["Грибы",24,null,0,null,null,null,0]
[null,null,null,0,"Оливки",23,null,0]
["Детское питание",null,null,0,"Горошек",24,null,0]
[null,null,null,0,"Кукуруза",25,null,0]
["Смесь",26,null,0,"Икра",26,null,0]
["Каша",27,null,0,"Сайра",27,null,0]
["Вода",28,null,{"$f":"B34*C34","v":0},"Тушенка",28,null,0]
[null,null,null,0,null,null,null,0]
["Быт",null,null,0,"Косметика",null,null,0]
[null,null,null,0,null,null,null,0]
["Ср-во для м. пос.",30,null,0,"Влажные салфетки",30,null,0]
["Зуб. паста",31,null,0,"Шампунь",31,null,0]
["Чистящее средство",32,null,0,"Мыло",32,null,0]
["Спички",33,null,0,"Туалетная бумага",33,null,0]
["Пленка пищевая",34,null,0,"Памперсы",34,null,0]
["Рукав для запекания",35,null,0,"Прокладки",35,null,0]
["Фольга",36,null,0]
["Бумага для выпечки",37,null,0]
["Губки для посуды",38,null,0]
["Губки железные",39,null,0]
["Перчатки",40,null,0]
["Стиральный порошок",41,null,0]
["Лампочки",42,null,0]

{"sheet":"Итоговый список","index":1,"n_rows":13,"n_cols":4,"rows_kept":13,"cut":false,"hidden":false,"merged":[[1,0,2,0],[7,0,8,0]]}
[null,"Цена","Кол-во","Итого"]
["Мясо и рыба"]
[]
["Цыпленок охл.",10,1,{"$f":"B4*C4","v":10}]
["Голень куриная копч.",25,5,{"$f":"B5*C5","v":125}]
["Говядина",17,3,51]
[]
["Фрукты и овощи"]
[]
["Яблоки",3,6,{"$f":"B10*C10","v":18}]
["Бананы",2,10,20]
["Лук",11,11,121]
["Грибы",5,4,20]